fUSD/lending_fUSD_20240903
["ID","MTS","AMOUNT","RATE_DAILY","PERIOD"]
[337028730,1725331833289,-500.0,0.00014925,2]
[337028731,1725331833299,-500.0,0.00014925,2]
[337028732,1725331833308,-500.0,0.00014925,2]
[337028733,1725331833319,-500.0,0.00014925,2]
[337028734,1725331833328,-500.0,0.00014925,2]
[337028735,1725331833337,-509.0706,0.00014925,2]
[337028736,1725331833346,-1500.0,0.0001493,2]
[337028737,1725331833355,-1500.0,0.00014939,2]
[337028738,1725331833364,-150.0,0.00014946,2]
[337028739,1725331833373,-1500.0,0.00014951,2]
[337028740,1725331833382,-150.0,0.00014952,2]
[337028741,1725331833391,-400.34500691,0.00014973,2]
[337028742,1725331833401,-360.68,0.00014978,2]
[337028743,1725331833410,-172.76,0.00014989,2]
[337028744,1725331833419,-150.0,0.00014998,2]
[337028745,1725331833428,-676.22537198,0.00014999,2]
[337028746,1725331833437,-238940.84380535,0.00014999,2]
[337028747,1725331833446,-691.0,0.00015,2]
[337028748,1725331833455,-17109.35331789,0.00015,2]
[337028749,1725331833534,-13579.90696282,0.00015,2]
[337028750,1725331833545,-298.3,0.00015,2]
[337028751,1725331833556,-2481.20419989,0.00015,2]
[337028752,1725331833568,-555.90330277,0.00015,2]
[337028753,1725331833579,-751.39001507,0.00015,2]
[337028754,1725331833589,-341.48088377,0.00015,2]
[337028755,1725331833600,-6558.09753364,0.00015,2]
[337028760,1725331838509,-893.121166,0.0001375,2]
[337028762,1725331838524,-150.0,0.00014815,2]
[337028763,1725331838535,-150.0,0.00014824,2]
[337028764,1725331838546,-500.0,0.00014873,2]
[337028765,1725331838556,-4.91854322,0.00014886,2]
[337028766,1725331838567,-460.38688018,0.00014886,2]
[337028767,1725331838576,-332.53669084,0.000149,2]
[337028768,1725331838585,-150.0,0.00014924,2]
[337028769,1725331838594,-150.0,0.00014989,2]
[337028770,1725331838603,-309731.2838467,0.00015,2]
[337028771,1725331838614,-1079.19611686,0.00015,2]
[337028772,1725331838718,-150.0,0.0001485,2]
[337028773,1725331838731,-13855.94135658,0.00015,2]
[337028774,1725331838744,-9247.40127066,0.00015,2]
[337028775,1725331838758,-1919.49092263,0.00015,2]
[337028776,1725331838772,-1632.9959002,0.00015,2]
[337028777,1725331838783,-965.47893929,0.00015,2]
[337028778,1725331838795,-1107.2408442,0.00015,2]
[337028779,1725331838806,-14623.83514097,0.00015,2]
[337028780,1725331838815,-625.0,0.00015,2]
[337028781,1725331838825,-3928.43683414,0.00015,2]
[337028782,1725331838928,-150.0,0.00014748,2]
[337028783,1725331838938,-150.0,0.00014921,2]
[337028784,1725331838947,-2088.94041669,0.00015,2]
[337028785,1725331838958,-59753.92360634,0.00015,2]
[337028786,1725331838969,-1002.00817452,0.00015,2]
[337028787,1725331838980,-1999.7712,0.00015,2]
[337028788,1725331838991,-2798.24218284,0.00015,2]
[337028789,1725331839002,-4646.56194764,0.00015,2]
[337028790,1725331839013,-2164.0660665,0.00015,2]
[337028793,1725331840648,-150.0,0.00014762,2]
[337028794,1725331840657,-327.06643227,0.000148,2]
[337028795,1725331840667,-150.0,0.00014844,2]
[337028796,1725331840678,-29.86216685,0.000149,2]
[337028797,1725331840689,-435.44325655,0.000149,2]
[337028798,1725331840699,-150.0,0.00014944,2]
[337028799,1725331840707,-150.0,0.00014954,2]
[337028800,1725331840717,-461.98801101,0.00015,2]
[337028801,1725331840728,-276.0637451,0.00015,2]
[337028802,1725331840739,-5198.16634652,0.00015,2]
[337028803,1725331841974,-150.0,0.00014862,2]
[337028804,1725331841983,-150.0,0.00014897,2]
[337028805,1725331841993,-150.0,0.0001492,2]
[337028806,1725331842001,-150.0,0.00014988,2]
[337028807,1725331842011,-160.11591725,0.00015,2]
[337028808,1725331842022,-401.71205352,0.00015,2]
[337028809,1725331842032,-3333.99104239,0.00015,2]
[337028810,1725331842043,-62165.98744174,0.00015,2]
[337028811,1725331842054,-411213.09194807,0.00015,2]
[337028813,1725331842066,-225862.20901664,0.00015,2]
[337028893,1725331843451,-150.0,0.00014814,2]
[337028894,1725331843460,-150.0,0.00014918,2]
[337028895,1725331843469,-150.0,0.0001492,2]
[337028896,1725331843479,-150.0,0.00014938,2]
[337028897,1725331843488,-16295.20326055,0.00015,2]
[337028898,1725331843499,-348462.07339354,0.00015,2]
[337028899,1725331843511,-4342.0000002,0.00015,2]
[337028900,1725331843523,-12013.5,0.00015,2]
[337028902,1725331843534,-3313.60911296,0.00015,2]
[337028904,1725331843546,-526.02,0.00015,2]
[337028908,1725331844379,-150.0,0.00014927,2]
[337028909,1725331844388,-24594.77496208,0.00015,2]
[337028910,1725331844399,-71783.70110887,0.00015,2]
[337028913,1725331846484,-327.06643225,0.00014825,2]
[337028915,1725331846493,-150.0,0.00014902,2]
[337028916,1725331846503,-150.0,0.00014906,2]
[337028918,1725331846512,-150.0,0.00014946,2]
[337028920,1725331846521,-2108.65627133,0.00015,2]
[337028921,1725331846534,-548.58502531,0.00015,2]
[337028922,1725331846545,-1543.58513441,0.00015,2]
[337028923,1725331846556,-250200.92559941,0.00015,2]
[337028924,1725331846778,-288.99288476,0.00015,2]
[337028925,1725331846792,-1771.28239606,0.00015,2]
[337028926,1725331846804,-35179.26100874,0.00015,2]
[337028927,1725332085047,387.98,0.00011971,2]
[337028928,1725332555128,5000.0,0.00013,19]
[337028929,1725332578774,5000.0,0.00013,21]
[337028930,1725332582844,5000.0,0.00013,22]
[337028931,1725332587160,368.58,0.00011928,2]
[337028932,1725332741805,193.0,0.00010959,2]
[337028958,1725333037631,-1278.978,0.00013621,2]
[337028959,1725333037642,-1204.41303352,0.00013667,2]
[337028960,1725333037654,-1203.45943142,0.00013667,2]
[337028961,1725333037664,-250.0,0.00013767,2]
[337028963,1725333037675,-176.17,0.00013774,2]
[337028965,1725333037684,-787.4385,0.00013799,2]
[337028967,1725333037694,-250.0,0.00013804,2]
[337028968,1725333037703,-250.0,0.00013825,2]
[337028969,1725333037713,-168.69,0.0001383,2]
[337028970,1725333037723,-61.03586858,0.00013847,2]
[337028971,1725333037830,-578.96413142,0.00013847,2]
[337028972,1725333037840,-196.65140817,0.00013864,2]
[337028973,1725333037852,-336.38859183,0.00013864,2]
[337028974,1725333037862,-179.78,0.00013872,2]
[337028975,1725333037871,-368.11151696,0.00013874,2]
[337028976,1725333037883,-131.87848304,0.00013874,2]
[337028977,1725333037893,-360.0,0.000139,2]
[337028978,1725333037903,-514.99,0.00013935,2]
[337028979,1725333037913,-500.40104758,0.00014,2]
[337028980,1725333037922,-368.58,0.00014192,2]
[337028981,1725333037932,-150.0,0.00014199,2]
[337028982,1725333037941,-2197.14711191,0.000142,7]
[337028983,1725333037950,-29055.88829758,0.000142,7]
[337028984,1725333037964,-3048.91164779,0.000142,7]
[337028985,1725333037976,-2944.34240302,0.000142,7]
[337028986,1725333037987,-9101.3781579,0.000142,7]
[337028987,1725333037999,-8693.51986952,0.000142,7]
[337028988,1725333038010,-1381.24087936,0.000142,7]
[337028989,1725333038030,-32730.55025173,0.000142,7]
[337028990,1725333038040,-340.74,0.00014678,2]
[337028991,1725333038050,-150.0,0.00014718,2]
[337028992,1725333038059,-150.0,0.00014719,2]
[337028993,1725333038069,-150.0,0.00014724,2]
[337028994,1725333038084,-150.0,0.00014726,2]
[337028995,1725333038093,-150.0,0.0001473,2]
[337028996,1725333038104,-150.0,0.00014732,2]
[337028997,1725333038115,-150.0,0.00014741,2]
[337028998,1725333038125,-150.0,0.00014741,2]
[337028999,1725333038134,-150.0,0.00014746,2]
[337029000,1725333038144,-150.0,0.00014747,2]
[337029001,1725333038154,-150.0,0.0001475,2]
[337029002,1725333038167,-150.0,0.00014755,2]
[337029003,1725333038176,-150.0,0.00014756,2]
[337029004,1725333038186,-150.0,0.00014758,2]
[337029005,1725333038196,-150.0,0.0001476,2]
[337029006,1725333038205,-150.0,0.00014765,2]
[337029007,1725333038215,-150.0,0.00014775,2]
[337029008,1725333038224,-150.0,0.00014775,2]
[337029009,1725333038234,-150.0,0.00014775,2]
[337029010,1725333038244,-150.0,0.00014777,2]
[337029011,1725333038253,-150.0,0.00014785,2]
[337029012,1725333038262,-150.0,0.00014786,2]
[337029013,1725333038272,-150.0,0.00014788,2]
[337029014,1725333038281,-419.301033,0.00014795,2]
[337029015,1725333038291,-150.0,0.00014796,2]
[337029016,1725333038301,-2016.586172,0.000148,2]
[337029017,1725333038311,-1596.62,0.000148,2]
[337029019,1725333038320,-150.0,0.000148,2]
[337029021,1725333038330,-150.0,0.00014803,2]
[337029024,1725333038339,-150.0,0.00014803,2]
[337029027,1725333038349,-150.0,0.00014807,2]
[337029030,1725333038358,-150.0,0.00014808,2]
[337029034,1725333038369,-150.0,0.00014809,2]
[337029036,1725333038378,-150.0,0.00014812,2]
[337029038,1725333038388,-150.0,0.00014816,2]
[337029040,1725333038397,-150.0,0.00014819,2]
[337029041,1725333038407,-150.0,0.00014821,2]
[337029044,1725333038416,-150.0,0.00014825,2]
[337029045,1725333038426,-150.0,0.00014825,2]
[337029048,1725333038437,-150.0,0.00014827,2]
[337029050,1725333038447,-150.0,0.00014831,2]
[337029051,1725333038457,-150.0,0.00014838,2]
[337029053,1725333038466,-150.0,0.00014844,2]
[337029055,1725333038476,-150.0,0.00014846,2]
[337029056,1725333038486,-150.0,0.00014848,2]
[337029057,1725333038496,-150.0,0.0001485,2]
[337029058,1725333038505,-150.0,0.00014852,2]
[337029059,1725333038515,-150.0,0.00014859,2]
[337029060,1725333038525,-1500.0,0.00014864,2]
[337029061,1725333038535,-150.0,0.00014871,2]
[337029062,1725333038545,-150.0,0.00014878,2]
[337029063,1725333038554,-150.0,0.0001488,2]
[337029064,1725333038564,-150.0,0.00014883,2]
[337029065,1725333038574,-150.0,0.00014886,2]
[337029066,1725333038583,-150.0,0.00014886,2]
[337029067,1725333038593,-150.0,0.00014889,2]
[337029068,1725333038602,-271.8048,0.0001489,2]
[337029069,1725333038614,-2473.90469604,0.0001489,2]
[337029070,1725333038632,-321.71463594,0.0001489,2]
[337029071,1725333038641,-205.6154,0.0001489,2]
[337029072,1725333038650,-2473.90469595,0.00014891,2]
[337029073,1725333038660,-150.0,0.00014892,2]
[337029074,1725333038670,-2473.90469595,0.00014892,2]
[337029075,1725333038680,-150.0,0.00014893,2]
[337029076,1725333038689,-2473.90469595,0.00014893,2]
[337029077,1725333038698,-321.71463592,0.00014893,2]
[337029078,1725333038708,-2473.90469595,0.00014894,2]
[337029079,1725333038717,-2473.90469595,0.00014896,2]
[337029080,1725333038727,-1044.27000643,0.00014897,2]
[337029081,1725333038739,-1429.63468952,0.00014897,2]
[337029082,1725333038748,-321.71463592,0.00014897,2]
[337029083,1725333038758,-17.08734456,0.00014898,2]
[337029084,1725333038769,-2456.81735139,0.00014898,2]
[337029085,1725333038778,-735.09461192,0.00014899,2]
[337029086,1725333038789,-1000.19973099,0.00014899,2]
[337029087,1725333038800,-738.61035304,0.00014899,2]
[337029088,1725333038811,-150.0,0.00014899,2]
[337029089,1725333038821,-177.388712,0.000149,2]
[337029090,1725333038830,-2473.90469595,0.000149,2]
[337029091,1725333038839,-321.71463592,0.000149,2]
[337029092,1725333038848,-181.98983705,0.000149,2]
[337029093,1725333038857,-150.0,0.00014903,2]
[337029094,1725333038871,-150.0,0.00014904,2]
[337029095,1725333038880,-150.0,0.00014908,2]
[337029096,1725333038889,-150.0,0.00014909,2]
[337029097,1725333038898,-150.0,0.00014909,2]
[337029098,1725333038907,-150.0,0.00014913,2]
[337029099,1725333038916,-150.0,0.00014914,2]
[337029100,1725333038925,-150.0,0.00014915,2]
[337029101,1725333038936,-150.0,0.00014915,2]
[337029102,1725333038947,-150.0,0.00014915,2]
[337029103,1725333038958,-150.0,0.00014915,2]
[337029104,1725333038968,-150.0,0.00014917,2]
[337029105,1725333038978,-14.39176604,0.00014917,2]
[337029106,1725333039657,-150.0,0.00014726,2]
[337029107,1725333039666,-150.0,0.00014728,2]
[337029108,1725333039675,-150.0,0.00014731,2]
[337029109,1725333039685,-150.0,0.00014737,2]
[337029111,1725333039695,-150.0,0.00014737,2]
[337029113,1725333039705,-150.0,0.00014751,2]
[337029114,1725333039714,-150.0,0.00014755,2]
[337029115,1725333039723,-33.32602541,0.00014756,2]
[337029116,1725333039882,-150.0,0.00014732,2]
[337029117,1725333039891,-150.0,0.00014743,2]
[337029118,1725333039902,-116.67397459,0.00014756,2]
[337029119,1725333039913,-150.0,0.0001476,2]
[337029120,1725333039922,-150.0,0.00014772,2]
[337029121,1725333039932,-150.0,0.00014779,2]
[337029122,1725333039942,-150.0,0.00014782,2]
[337029123,1725333039951,-150.0,0.00014785,2]
[337029124,1725333039961,-150.0,0.00014785,2]
[337029125,1725333039971,-150.0,0.00014792,2]
[337029126,1725333039981,-150.0,0.00014795,2]
[337029127,1725333039990,-150.0,0.00014802,2]
[337029128,1725333040000,-150.0,0.00014804,2]
[337029129,1725333040009,-150.0,0.0001481,2]
[337029130,1725333040019,-150.0,0.0001482,2]
[337029131,1725333040029,-150.0,0.00014829,2]
[337029132,1725333040038,-150.0,0.00014831,2]
[337029133,1725333040048,-150.0,0.0001484,2]
[337029134,1725333040058,-150.0,0.00014842,2]
[337029135,1725333040068,-150.0,0.00014844,2]
[337029136,1725333040082,-150.0,0.00014851,2]
[337029137,1725333040092,-150.0,0.00014852,2]
[337029138,1725333040102,-150.0,0.00014853,2]
[337029141,1725333040111,-150.0,0.00014857,2]
[337029143,1725333040122,-150.0,0.00014861,2]
[337029145,1725333040131,-150.0,0.00014874,2]
[337029147,1725333040141,-150.0,0.00014883,2]
[337029149,1725333040152,-150.0,0.00014891,2]
[337029150,1725333040162,-150.0,0.00014898,2]
[337029151,1725333040172,-150.0,0.00014901,2]
[337029152,1725333040181,-126.0543053,0.00014905,2]
[337029153,1725333040193,-23.9456947,0.00014905,2]
[337029154,1725333040203,-135.60823396,0.00014917,2]
[337029155,1725333040213,-1310.29541612,0.00014918,2]
[337029156,1725333040222,-150.0,0.00014924,2]
[337029157,1725333040232,-150.0,0.00014928,2]
[337029158,1725333040242,-150.0,0.00014929,2]
[337029159,1725333040251,-150.0,0.00014932,2]
[337029160,1725333040260,-150.0,0.00014936,2]
[337029161,1725333040271,-150.0,0.00014937,2]
[337029162,1725333040280,-150.0,0.00014939,2]
[337029163,1725333040289,-150.0,0.0001494,2]
[337029164,1725333040299,-150.0,0.00014941,2]
[337029165,1725333040307,-150.0,0.00014941,2]
[337029166,1725333040317,-150.0,0.00014941,2]
[337029167,1725333040326,-150.0,0.00014943,2]
[337029168,1725333040335,-150.0,0.00014943,2]
[337029169,1725333040344,-150.0,0.00014943,2]
[337029170,1725333040353,-150.0,0.00014945,2]
[337029171,1725333040362,-150.0,0.00014945,2]
[337029172,1725333040371,-150.0,0.00014948,2]
[337029173,1725333040381,-150.0,0.0001495,2]
[337029174,1725333040390,-150.0,0.00014951,2]
[337029175,1725333040399,-150.0,0.00014952,2]
[337029176,1725333040408,-150.0,0.00014952,2]
[337029177,1725333040417,-150.0,0.00014954,2]
[337029178,1725333040426,-150.0,0.00014954,2]
[337029179,1725333040435,-150.0,0.00014957,2]
[337029180,1725333040445,-150.0,0.0001496,2]
[337029181,1725333040454,-150.0,0.00014961,2]
[337029182,1725333040462,-150.0,0.00014963,2]
[337029183,1725333040471,-150.0,0.00014965,2]
[337029184,1725333040480,-150.0,0.00014965,2]
[337029185,1725333040490,-150.0,0.00014967,2]
[337029186,1725333040499,-150.0,0.00014968,2]
[337029187,1725333040508,-150.0,0.00014971,2]
[337029188,1725333040517,-500.0,0.00014973,2]
[337029189,1725333040526,-500.0,0.00014973,2]
[337029190,1725333040535,-150.0,0.00014973,2]
[337029191,1725333040544,-150.0,0.00014974,2]
[337029192,1725333040553,-150.0,0.00014976,2]
[337029193,1725333040562,-150.0,0.00014978,2]
[337029194,1725333040572,-150.0,0.00014982,2]
[337029195,1725333040581,-150.0,0.00014982,2]
[337029196,1725333040591,-785.0,0.00014983,2]
[337029197,1725333040600,-150.0,0.00014984,2]
[337029198,1725333040609,-150.0,0.00014986,2]
[337029199,1725333040619,-163.50508464,0.00014989,2]
[337029200,1725333040628,-500.0,0.00014989,2]
[337029201,1725333040638,-327.5646787,0.00014989,2]
[337029202,1725333040648,-500.0,0.00014989,2]
[337029203,1725333040659,-182.65645791,0.00014989,2]
[337029204,1725333040669,-18171.42443397,0.0001499,5]
[337029205,1725333040883,-351572.28075318,0.0001499,5]
[337029206,1725333040892,-150.0,0.0001499,2]
[337029207,1725333040901,-225.40845732,0.00014999,2]
[337029208,1725333040910,-625337.00152677,0.00015,2]
[337029209,1725333040920,-1205420.97011002,0.00015,2]
[337029210,1725333040930,-206.73,0.00015,2]
[337029211,1725333040939,-800.0,0.00015,2]
[337029212,1725333040947,-3856611.63701512,0.00015,2]
[337029213,1725333040958,-312.91,0.00015,2]
[337029216,1725333042890,-266.52,0.0001395,2]
[337029217,1725333042900,-150.0,0.00014726,2]
[337029218,1725333042910,-150.0,0.00014731,2]
[337029219,1725333042920,-150.0,0.00014732,2]
[337029220,1725333042929,-150.0,0.00014738,2]
[337029221,1725333042940,-150.0,0.00014739,2]
[337029222,1725333042950,-150.0,0.0001474,2]
[337029223,1725333042960,-150.0,0.0001474,2]
[337029224,1725333042970,-150.0,0.00014751,2]
[337029225,1725333042980,-150.0,0.00014751,2]
[337029226,1725333042989,-150.0,0.00014753,2]
[337029227,1725333043000,-150.0,0.00014753,2]
[337029228,1725333043009,-150.0,0.00014755,2]
[337029229,1725333043018,-150.0,0.00014756,2]
[337029230,1725333043027,-150.0,0.00014758,2]
[337029231,1725333043037,-150.0,0.00014759,2]
[337029232,1725333043047,-150.0,0.00014768,2]
[337029233,1725333043056,-150.0,0.00014772,2]
[337029234,1725333043066,-150.0,0.00014776,2]
[337029235,1725333043075,-150.0,0.00014785,2]
[337029236,1725333043085,-150.0,0.00014787,2]
[337029237,1725333043097,-150.0,0.00014796,2]
[337029238,1725333043106,-150.0,0.00014804,2]
[337029239,1725333043117,-150.0,0.00014809,2]
[337029240,1725333043130,-150.0,0.00014811,2]
[337029241,1725333043139,-150.0,0.00014813,2]
[337029242,1725333043148,-150.0,0.00014813,2]
[337029243,1725333043157,-150.0,0.00014816,2]
[337029244,1725333043168,-150.0,0.0001482,2]
[337029245,1725333043177,-150.0,0.0001484,2]
[337029246,1725333043187,-150.0,0.00014841,2]
[337029247,1725333043196,-150.0,0.00014848,2]
[337029248,1725333043205,-150.0,0.00014856,2]
[337029249,1725333043215,-150.0,0.00014861,2]
[337029250,1725333043223,-150.0,0.00014873,2]
[337029251,1725333043233,-150.0,0.00014874,2]
[337029252,1725333043242,-150.0,0.00014884,2]
[337029253,1725333043251,-150.0,0.00014886,2]
[337029254,1725333043261,-150.0,0.00014887,2]
[337029255,1725333043270,-150.0,0.00014892,2]
[337029256,1725333043279,-150.0,0.00014895,2]
[337029257,1725333043288,-150.0,0.00014896,2]
[337029258,1725333043297,-150.0,0.00014897,2]
[337029259,1725333043306,-150.0,0.00014903,2]
[337029260,1725333043315,-150.0,0.00014904,2]
[337029261,1725333043324,-150.0,0.00014904,2]
[337029262,1725333043333,-150.0,0.00014905,2]
[337029263,1725333043342,-150.0,0.00014908,2]
[337029264,1725333043351,-150.0,0.0001491,2]
[337029265,1725333043360,-150.0,0.00014916,2]
[337029266,1725333043370,-150.0,0.00014918,2]
[337029267,1725333043379,-150.0,0.00014919,2]
[337029268,1725333043388,-150.0,0.00014923,2]
[337029269,1725333043397,-150.0,0.00014925,2]
[337029270,1725333043406,-150.0,0.00014933,2]
[337029271,1725333043415,-150.0,0.00014935,2]
[337029272,1725333043424,-116.35567252,0.00014943,2]
[337029273,1725333043435,-33.64432748,0.00014943,2]
[337029274,1725333043445,-150.0,0.00014944,2]
[337029275,1725333043455,-150.0,0.00014949,2]
[337029276,1725333043465,-150.0,0.00014951,2]
[337029277,1725333043475,-150.0,0.00014958,2]
[337029278,1725333043485,-150.0,0.00014962,2]
[337029279,1725333043495,-150.0,0.00014964,2]
[337029280,1725333043505,-150.0,0.00014966,2]
[337029281,1725333043514,-150.0,0.00014967,2]
[337029282,1725333043523,-150.0,0.00014971,2]
[337029283,1725333043532,-150.0,0.00014972,2]
[337029284,1725333043542,-150.0,0.00014979,2]
[337029285,1725333043553,-150.0,0.0001498,2]
[337029286,1725333043562,-150.0,0.0001499,2]
[337029287,1725333043571,-150.0,0.00014992,2]
[337029288,1725333043581,-150.0,0.00014994,2]
[337029289,1725333043590,-150.0,0.00014997,2]
[337029290,1725333043601,-150.0,0.00014997,2]
[337029291,1725333043610,-4671.45773714,0.00015,2]
[337029292,1725333043623,-4526.756931,0.00015,2]
[337029293,1725333043634,-1128.06641355,0.00015,2]
[337029294,1725333043646,-912.45,0.00015,2]
[337029295,1725333043660,-567.63859501,0.00015,2]
[337029296,1725333043671,-2057.25000025,0.00015,2]
[337029297,1725333043684,-1149.07228572,0.00015,2]
[337029298,1725333043696,-6810.38052883,0.00015,2]
[337029299,1725333043707,-918.3487726,0.00015,2]
[337029300,1725333043720,-369.12270208,0.00015,2]
[337029301,1725333043732,-814.55264413,0.00015,2]
[337029302,1725333043743,-586.51087167,0.00015,2]
[337029303,1725333043755,-821.406033,0.00015,2]
[337029304,1725333043768,-290.57000001,0.00015,2]
[337029305,1725333045265,-367.69336575,0.00015,2]
[337029306,1725333045277,-11367.3242289,0.00015,2]
[337029307,1725333045317,-150.0,0.00014747,2]
[337029308,1725333045326,-150.0,0.00014756,2]
[337029309,1725333045335,-82.12258582,0.00014775,2]
[337029310,1725333045346,-67.87741418,0.00014775,2]
[337029311,1725333045355,-150.0,0.00014864,2]
[337029312,1725333045365,-150.0,0.00014869,2]
[337029313,1725333045375,-6033.01799878,0.00015,2]
[337029314,1725333045386,-1559.45168708,0.00015,2]
[337029315,1725333045398,-273.88727203,0.00015,2]
[337029316,1725333045429,-927.4696075,0.00015,2]
[337029317,1725333045442,-3067.36856786,0.00015,2]
[337029318,1725333045455,-1732.275,0.00015,2]
[337029319,1725333045465,-503.19150413,0.00015,2]
[337029320,1725333045476,-1137.67418269,0.00015,2]
[337029321,1725333045487,-361.6920653,0.00015,2]
[337029322,1725333045498,-1164.90682513,0.00015,2]
[337029323,1725333045509,-841.5247125,0.00015,2]
[337029324,1725333045519,-757.85641077,0.00015,2]
[337029325,1725333046050,-150.0,0.00014727,2]
[337029326,1725333046059,-150.0,0.00014734,2]
[337029327,1725333046071,-150.0,0.00014735,2]
[337029328,1725333046082,-150.0,0.00014737,2]
[337029329,1725333046091,-118.1047832,0.00014741,2]
[337029332,1725333046102,-31.8952168,0.00014741,2]
[337029333,1725333046111,-150.0,0.00014743,2]
[337029334,1725333046122,-150.0,0.00014751,2]
[337029335,1725333046130,-118.1047832,0.00014758,2]
[337029336,1725333046141,-31.8952168,0.00014758,2]
[337029337,1725333046152,-150.0,0.0001476,2]
[337029338,1725333046161,-150.0,0.00014767,2]
[337029339,1725333046171,-150.0,0.00014768,2]
[337029340,1725333046180,-150.0,0.00014773,2]
[337029341,1725333046189,-150.0,0.00014775,2]
[337029342,1725333046198,-117.10000708,0.00014777,2]
[337029343,1725333046387,-32.89999292,0.00014777,2]
[337029344,1725333046395,-150.0,0.00014781,2]
[337029345,1725333046404,-150.0,0.00014784,2]
[337029346,1725333046413,-85.94954275,0.00014791,2]
[337029347,1725333046424,-64.05045725,0.00014791,2]
[337029348,1725333046433,-150.0,0.00014791,2]
[337029349,1725333046443,-150.0,0.00014793,2]
[337029350,1725333046452,-150.0,0.00014796,2]
[337029351,1725333046461,-150.0,0.00014799,2]
[337029352,1725333046471,-150.0,0.00014799,2]
[337029353,1725333046481,-86.03954275,0.000148,2]
[337029354,1725333046493,-63.96045725,0.000148,2]
[337029355,1725333046503,-150.0,0.000148,2]
[337029356,1725333046513,-150.0,0.00014808,2]
[337029357,1725333046523,-150.0,0.00014813,2]
[337029358,1725333046534,-150.0,0.00014816,2]
[337029359,1725333046544,-150.0,0.00014818,2]
[337029360,1725333046554,-150.0,0.00014818,2]
[337029361,1725333046564,-150.0,0.0001482,2]
[337029362,1725333046574,-108.62096752,0.00014822,2]
[337029363,1725333046587,-41.37903248,0.00014822,2]
[337029364,1725333046597,-150.0,0.00014825,2]
[337029365,1725333046607,-150.0,0.00014833,2]
[337029366,1725333046618,-150.0,0.0001484,2]
[337029367,1725333046627,-150.0,0.00014841,2]
[337029368,1725333046637,-28.36878241,0.00014851,2]
[337029369,1725333046648,-121.63121759,0.00014851,2]
[337029370,1725333046659,-150.0,0.00014855,2]
[337029371,1725333046669,-150.0,0.00014862,2]
[337029372,1725333046680,-150.0,0.00014864,2]
[337029373,1725333046690,-150.0,0.00014867,2]
[337029374,1725333046701,-150.0,0.0001487,2]
[337029375,1725333046711,-150.0,0.00014871,2]
[337029376,1725333046722,-150.0,0.00014883,2]
[337029377,1725333046736,-150.0,0.00014883,2]
[337029378,1725333046746,-150.0,0.00014884,2]
[337029379,1725333046755,-150.0,0.00014887,2]
[337029380,1725333046765,-150.0,0.00014888,2]
[337029381,1725333046777,-150.0,0.00014892,2]
[337029382,1725333046786,-150.0,0.00014899,2]
[337029383,1725333046796,-150.0,0.00014899,2]
[337029384,1725333046806,-150.0,0.00014903,2]
[337029385,1725333046816,-150.0,0.00014904,2]
[337029386,1725333046826,-150.0,0.00014915,2]
[337029387,1725333046836,-150.0,0.00014924,2]